bitfinex-derivatives/quotes_SOLF0:USTF0_20250215
["timestamp","ask_amount","ask_price","bid_price","bid_amount"]
[1739603415448,8.09529238,195.61,195.57,4.6105]
[1739603415643,8.09529238,195.63,195.57,4.6105]
[1739603415844,8.09529238,195.61,195.56,8.09529238]
[1739603416041,23.42529238,195.72,195.56,8.09529238]
[1739603416251,23.42529238,195.72,195.48,4.7814]
[1739603416252,5.1107,195.64,195.6,8.09529238]
[1739603416555,0.03218937,195.66,195.62,8.09529238]
[1739603416845,8.09529238,195.71,195.64,8.09529238]
[1739603417045,0.03325199,195.66,195.64,13.20589238]
[1739603417238,0.03325199,195.66,195.64,8.09529238]
[1739603417638,0.03325199,195.66,195.63,0.03466959]
[1739603418450,5.1106,195.64,195.63,0.03466959]
[1739603418746,8.09529238,195.65,195.63,0.03466959]
[1739603418943,5.1106,195.64,195.63,6.959e-05]
[1739603420951,13.20569238,195.65,195.63,6.959e-05]
[1739603421351,8.09529238,195.65,195.63,6.959e-05]
[1739603422146,0.03325199,195.66,195.63,6.959e-05]
[1739603423253,8.09529238,195.71,195.64,8.09529238]
[1739603423445,8.09529238,195.73,195.66,8.09529238]
[1739603424150,8.09529238,195.71,195.64,8.09529238]
[1739603424555,0.0322568,195.69,195.66,0.03360904]
[1739603425055,5.1415568,195.69,195.66,0.03360904]
[1739603425259,8.12754918,195.69,195.66,0.03360904]
[1739603425652,5.1098,195.67,195.66,0.03360904]
[1739603425853,13.20509238,195.67,195.66,0.03360904]
[1739603426052,13.20509238,195.67,195.66,9.04e-06]
[1739603426452,8.09529238,195.67,195.6,1.6434]
[1739603426755,0.0322568,195.69,195.54,8.09529238]
[1739603426756,8.09529238,195.62,195.54,8.09529238]
[1739603427152,5.1122,195.58,195.54,8.09529238]
[1739603427362,8.09529238,195.56,195.52,1.5372]
[1739603427854,8.13039327,195.56,195.52,1.56920991]
[1739603428251,0.03510089,195.56,195.52,1.56920991]
[1739603428456,0.03510089,195.56,195.52,9.66450229]
[1739603429157,0.03510089,195.56,195.54,8.09529238]
[1739603429460,0.03510089,195.56,195.52,1.56920991]
[1739603430159,0.03510089,195.56,195.55,8.09529238]
[1739603430457,8.09529238,195.64,195.55,8.09529238]
[1739603430657,8.09529238,195.64,195.57,8.09529238]
[1739603431550,1.5022,195.67,195.55,12.70276417]
[1739603431551,14.20496417,195.67,195.55,12.70276417]
[1739603431752,0.03227428,195.62,195.59,0.03271286]
[1739603433258,5.1116,195.61,195.59,0.03271286]
[1739603433854,17.81436417,195.61,195.59,1.286e-05]
[1739603438353,12.70276417,195.61,195.59,1.286e-05]
[1739603438558,0.03227428,195.62,195.59,1.286e-05]
[1739603439064,5.1116,195.61,195.59,1.286e-05]
[1739603439263,17.81436417,195.61,195.59,1.286e-05]
[1739603444269,5.1116,195.61,195.59,1.286e-05]
[1739603447666,0.03227428,195.62,195.59,1.286e-05]
[1739603449373,5.14347428,195.62,195.59,1.286e-05]
[1739603449972,0.03227428,195.62,195.59,1.286e-05]
[1739603452267,5.14347428,195.62,195.59,1.286e-05]
[1739603452474,0.03227428,195.62,195.59,1.286e-05]
[1739603454974,5.14347428,195.62,195.59,1.286e-05]
[1739603455177,0.03227428,195.62,195.59,1.286e-05]
[1739603455674,13.24187382,195.61,195.59,1.286e-05]
[1739603456578,0.03227428,195.62,195.59,1.286e-05]
[1739603457277,5.1115,195.61,195.59,1.286e-05]
[1739603457483,0.03227428,195.62,195.59,1.286e-05]
[1739603460182,5.1115,195.61,195.59,1.286e-05]
[1739603460683,13.24197382,195.61,195.59,1.286e-05]
[1739603461586,0.03227428,195.62,195.59,1.286e-05]
[1739603464188,5.1116,195.61,195.59,1.286e-05]
[1739603465689,5.1117,195.6,195.59,1.286e-05]
[1739603472302,5.1114,195.61,195.59,1.286e-05]
[1739603473101,0.03227428,195.62,195.59,1.286e-05]
[1739603473293,0.03227428,195.62,195.6,8.13047382]
[1739603477312,5.1103,195.66,195.6,8.13047382]
[1739603477503,8.13047382,195.69,195.61,3.1503]
[1739603477705,8.13047382,195.69,195.61,11.28077382]
[1739603478004,8.13047382,195.67,195.61,3.1503]
[1739603478207,8.13047382,195.65,195.61,3.1503]
[1739603478606,8.16354195,195.65,195.61,3.1853901]
[1739603479211,0.03306813,195.65,195.63,8.13047382]
[1739603483015,0.03306813,195.65,195.64,5.1106]
[1739603485116,0.03306813,195.65,195.63,13.24137382]
[1739603485716,0.03306813,195.65,195.63,8.13047382]
[1739603487316,0.03306813,195.65,195.62,1.5931]
[1739603488720,0.03306813,195.65,195.61,3.1853901]
[1739603489520,9.06503756,195.65,195.61,3.1853901]
[1739603490019,5.1106,195.64,195.61,3.1853901]
[1739603490519,9.06503756,195.65,195.61,3.1853901]
[1739603491120,5.1111,195.63,195.61,3.1853901]
[1739603491418,9.06503756,195.65,195.61,3.1853901]
[1739603491720,5.1106,195.64,195.61,3.1853901]
[1739603496018,5.1109,195.63,195.61,3.1853901]
[1739603496223,0.03306813,195.65,195.62,9.03196943]
[1739603498023,5.14366813,195.65,195.62,9.03196943]
[1739603498324,0.03306813,195.65,195.61,3.1853901]
[1739603498521,0.03306813,195.65,195.61,1.6330901]
[1739603499126,5.14366813,195.65,195.61,1.6330901]
[1739603499425,0.03306813,195.65,195.61,1.6330901]
[1739603500420,5.111,195.63,195.61,1.6330901]
[1739603503120,0.03306813,195.65,195.61,1.6330901]
[1739603503429,5.1111,195.62,195.61,0.0350901]
[1739603508027,5.1111,195.62,195.61,9.01e-05]
[1739603510938,8.2289,195.62,195.61,9.01e-05]
[1739603511138,5.1141,195.51,195.46,9.03196943]
[1739603512240,5.15143904,195.5,195.47,0.03159498]
[1739603514139,0.03693904,195.5,195.47,0.03159498]
[1739603518349,0.03693904,195.5,195.47,5.14659498]
[1739603518747,0.03693904,195.5,195.47,0.03159498]
[1739603519651,5.15123904,195.5,195.47,0.03159498]
[1739603519855,0.03693904,195.5,195.47,0.03159498]
[1739603521250,0.03693904,195.5,195.49,5.1145]
[1739603521652,9.03196943,195.59,195.48,9.03196943]
[1739603521949,9.03196943,195.57,195.52,9.03196943]
[1739603522248,9.03196943,195.57,195.5,9.03196943]
[1739603522448,9.03196943,195.57,195.51,5.114]
[1739603522651,9.03196943,195.59,195.52,9.03196943]
[1739603522851,0.03906724,195.56,195.52,9.06632471]
[1739603523249,5.15206724,195.56,195.52,9.06632471]
[1739603524153,0.03906724,195.56,195.52,9.06632471]
[1739603524355,5.113,195.55,195.52,9.06632471]
[1739603525355,0.03906724,195.56,195.52,9.06632471]
[1739603527149,5.113,195.55,195.52,9.06632471]
[1739603528056,5.1135,195.53,195.52,0.03435528]
[1739603528357,0.03906724,195.56,195.52,0.03435528]
[1739603529358,5.113,195.55,195.52,0.03435528]
[1739603531656,5.1132,195.54,195.52,0.03435528]
[1739603531864,0.03906724,195.56,195.52,0.03435528]
[1739603532259,5.1133,195.54,195.52,0.03435528]
[1739603533865,0.03906724,195.56,195.52,9.06632471]
[1739603534163,0.03906724,195.56,195.55,9.03196943]
[1739603535565,0.03906724,195.56,195.53,9.03196943]
[1739603536065,0.03906724,195.56,195.52,0.03435528]
[1739603536666,5.1135,195.53,195.52,0.03435528]
[1739603537766,0.03906724,195.56,195.52,0.03435528]
[1739603538267,5.15186724,195.56,195.52,0.03435528]
[1739603538462,0.03906724,195.56,195.52,0.03435528]
[1739603538868,5.113,195.55,195.52,0.03435528]
[1739603540462,0.03906724,195.56,195.52,0.03435528]
[1739603541867,5.15196724,195.56,195.52,0.03435528]
[1739603542471,5.113,195.55,195.52,0.03435528]
[1739603543364,5.1133,195.54,195.52,0.03435528]
[1739603543870,0.03906724,195.56,195.52,0.03435528]
[1739603544272,5.15206724,195.56,195.52,0.03435528]
[1739603544968,0.03906724,195.56,195.52,0.03435528]
[1739603545172,5.1131,195.55,195.52,0.03435528]
[1739603548570,5.15176724,195.56,195.52,0.03435528]
[1739603549173,0.03906724,195.56,195.52,0.03435528]
[1739603549377,5.113,195.55,195.52,0.03435528]
[1739603553978,0.03906724,195.56,195.53,9.03196943]
[1739603554180,0.03906724,195.56,195.55,9.03196943]
[1739603556572,5.1113,195.62,195.55,14.14496943]
[1739603556778,5.1113,195.62,195.57,9.03196943]
[1739603556975,9.03196943,195.64,195.57,9.03196943]
[1739603557783,0.0359437,195.62,195.59,0.03336148]
[1739603558179,5.1117,195.6,195.59,0.03336148]
[1739603564987,14.14366943,195.6,195.59,0.03336148]
[1739603565687,9.03196943,195.6,195.51,9.03196943]
[1739603565884,9.03196943,195.57,195.51,9.03196943]
[1739603566279,5.1137,195.53,195.51,9.03196943]
[1739603566986,0.03783938,195.54,195.5,0.03275432]
[1739603567493,5.114,195.51,195.5,0.03275432]
[1739603568889,5.1138,195.52,195.5,0.03275432]
[1739603569489,5.15133938,195.54,195.5,0.03275432]
[1739603570189,0.03783938,195.54,195.5,0.03275432]
[1739603570390,0.03783938,195.54,195.51,9.03196943]
[1739603572587,0.03783938,195.54,195.53,9.03196943]
[1739603574188,0.03783938,195.54,195.53,14.14546943]
[1739603574585,0.03783938,195.54,195.53,9.03196943]
[1739603579198,0.03783938,195.54,195.51,10.68816943]
[1739603580297,0.03783938,195.54,195.53,14.14546943]
[1739603580802,0.03783938,195.54,195.53,9.03196943]
[1739603586000,0.03783938,195.54,195.53,14.14546943]
[1739603586399,9.03196943,195.63,195.53,9.03196943]
[1739603586601,5.1114,195.61,195.55,14.14486943]
[1739603587607,0.03264895,195.6,195.56,0.03330587]
[1739603587809,0.03264895,195.6,195.56,5.14600587]
[1739603588407,0.03264895,195.6,195.56,0.03330587]
[1739603588408,5.14434895,195.6,195.56,0.03330587]
[1739603589908,0.03264895,195.6,195.56,0.03330587]
[1739603591909,5.112,195.59,195.56,0.03330587]
[1739603597009,9.03196943,195.59,195.56,0.03330587]
[1739603597213,5.1124,195.57,195.56,0.03330587]
[1739603598014,9.03196943,195.59,195.56,0.03330587]
[1739603598214,5.1122,195.58,195.56,0.03330587]
[1739603599512,0.03264895,195.6,195.56,0.03330587]
[1739603601013,5.14434895,195.6,195.56,0.03330587]
[1739603601612,0.03264895,195.6,195.56,0.03330587]
[1739603601915,5.1119,195.59,195.56,0.03330587]
[1739603602605,9.03196943,195.59,195.56,0.03330587]
[1739603603614,5.1124,195.58,195.56,0.03330587]
[1739603603815,9.03196943,195.59,195.56,0.03330587]
[1739603605117,5.1124,195.57,195.56,0.03330587]
[1739603607318,5.1122,195.58,195.56,0.03330587]
[1739603608318,5.14454895,195.6,195.56,0.03330587]
[1739603609216,0.03264895,195.6,195.56,0.03330587]
[1739603609415,5.1119,195.59,195.56,0.03330587]
[1739603611424,0.03264895,195.6,195.56,0.03330587]
[1739603612724,0.03264895,195.6,195.57,9.03196943]
[1739603614528,0.03264895,195.6,195.59,9.03196943]
[1739603615926,0.03264895,195.6,195.57,9.03196943]
[1739603616422,0.03264895,195.6,195.56,0.03330587]
[1739603617341,5.1122,195.59,195.56,0.03330587]
[1739603618036,0.03264895,195.6,195.56,0.03330587]
[1739603618424,9.03196943,195.57,195.56,0.03330587]
[1739603618624,14.14436943,195.57,195.56,0.03330587]
[1739603620736,5.1122,195.58,195.56,0.03330587]
[1739603621837,9.03196943,195.59,195.56,0.03330587]
[1739603622037,5.14454895,195.6,195.56,0.03330587]
[1739603622538,0.03264895,195.6,195.56,0.03330587]
[1739603622831,9.03196943,195.59,195.56,0.03330587]
[1739603623026,9.03196943,195.57,195.56,0.03330587]
[1739603623434,14.14436943,195.57,195.56,0.03330587]
[1739603624731,5.1124,195.57,195.56,0.03330587]
[1739603627737,9.03196943,195.59,195.56,0.03330587]
[1739603628442,5.1124,195.57,195.56,0.03330587]
[1739603630640,0.03264895,195.6,195.56,0.03330587]
[1739603630844,5.1122,195.58,195.56,0.03330587]
[1739603633840,0.03264895,195.6,195.56,0.03330587]
[1739603634045,0.03264895,195.6,195.59,9.03196943]
[1739603635645,0.03264895,195.6,195.57,9.03196943]
[1739603635852,0.03264895,195.6,195.56,0.03330587]
[1739603637342,5.1123,195.58,195.56,0.03330587]
[1739603637537,0.03264895,195.6,195.56,0.03330587]
[1739603639849,5.1123,195.58,195.56,0.03330587]
[1739603640552,0.03264895,195.6,195.56,0.03330587]
[1739603642848,5.14454895,195.6,195.56,0.03330587]
[1739603643054,0.03264895,195.6,195.56,0.03330587]
[1739603643352,0.03264895,195.6,195.57,9.03196943]
[1739603647457,5.14434895,195.6,195.57,9.03196943]
[1739603648557,0.03264895,195.6,195.57,9.03196943]
[1739603654559,5.14434895,195.6,195.57,9.03196943]
[1739603655859,0.03264895,195.6,195.57,9.03196943]
[1739603661162,5.14434895,195.6,195.57,9.03196943]
[1739603661765,0.03264895,195.6,195.57,9.03196943]
[1739603666865,0.03264895,195.6,195.57,14.14436943]
[1739603667064,0.03264895,195.6,195.59,9.03196943]
[1739603671566,9.03196943,195.67,195.59,9.03196943]
[1739603671771,5.1109,195.64,195.61,9.03196943]
[1739603672772,5.14787414,195.64,195.61,9.06414346]
[1739603674072,0.03697414,195.64,195.63,9.03196943]
[1739603679477,5.14757414,195.64,195.63,9.03196943]
[1739603680476,0.03697414,195.64,195.63,9.03196943]
[1739603690995,5.14757414,195.64,195.63,9.03196943]
[1739603692388,0.03697414,195.64,195.63,9.03196943]
[1739603695189,5.11,195.67,195.66,9.03196943]
[1739603696986,0.03915417,195.68,195.66,9.03196943]
[1739603698592,10.34444792,195.76,195.66,9.03196943]
[1739603698891,5.108,195.74,195.73,9.03196943]
[1739603701998,0.034172,195.75,195.72,0.03759899]
[1739603702195,5.1083,195.73,195.72,0.03759899]
[1739603704996,5.1096,195.68,195.67,9.03196943]
[1739603705396,9.03196943,195.73,195.65,9.03196943]
[1739603705595,5.1101,195.66,195.65,9.03196943]
[1739603706391,5.1104,195.65,195.64,0.03656313]
[1739603708601,5.1104,195.65,195.64,6.313e-05]
[1739603708799,9.03196943,195.65,195.59,9.03196943]
[1739603709799,5.1117,195.6,195.59,9.03196943]
[1739603710801,5.1117,195.6,195.58,0.03266744]
[1739603712498,5.1127,195.56,195.55,9.03196943]
[1739603712798,9.03196943,195.59,195.53,9.03196943]
[1739603713400,9.03196943,195.59,195.51,9.03196943]
[1739603713601,9.03196943,195.57,195.54,0.03220171]
[1739603713994,5.1138,195.52,195.51,9.03196943]
[1739603716903,5.1134,195.54,195.51,9.03196943]
[1739603717102,5.1134,195.54,195.53,9.03196943]
[1739603719908,0.0371839,195.57,195.51,9.03196943]
[1739603720209,5.1137,195.53,195.51,9.03196943]
[1739603720405,0.0371839,195.57,195.51,9.03196943]
[1739603720608,5.1138,195.52,195.51,9.03196943]
[1739603725204,5.114,195.51,195.5,0.03366442]
[1739603725408,9.03196943,195.53,195.45,9.03196943]
[1739603726611,0.03502376,195.51,195.47,0.03479541]
[1739603727011,5.115,195.48,195.47,0.03479541]
[1739603728612,0.03502376,195.51,195.47,0.03479541]
[1739603728813,5.1145,195.5,195.47,9.06676484]
[1739603729106,0.03502376,195.51,195.47,9.06676484]
[1739603729515,5.1148,195.49,195.47,9.06676484]
[1739603731718,0.03502376,195.51,195.47,9.06676484]
[1739603731917,5.1144,195.5,195.47,9.06676484]
[1739603732517,5.1146,195.49,195.47,9.06676484]
[1739603733918,5.1143,195.5,195.47,9.06676484]
[1739603734318,0.03502376,195.51,195.47,9.06676484]
[1739603734815,5.1146,195.49,195.47,9.06676484]
[1739603735019,0.03502376,195.51,195.47,9.06676484]
[1739603735920,5.1145,195.5,195.47,9.06676484]
[1739603736620,5.1146,195.49,195.47,9.06676484]
[1739603737219,0.03502376,195.51,195.47,9.06676484]
[1739603737415,5.1143,195.5,195.47,9.06676484]
[1739603739120,0.03502376,195.51,195.47,9.06676484]
[1739603739321,5.1146,195.49,195.47,9.06676484]
[1739603739918,0.03502376,195.51,195.47,9.06676484]
[1739603740123,0.03502376,195.51,195.49,9.03196943]
[1739603740819,5.1143,195.5,195.49,9.03196943]
[1739603741018,0.03502376,195.51,195.49,9.03196943]
[1739603741525,5.14922376,195.51,195.49,9.03196943]
[1739603742121,0.03502376,195.51,195.49,9.03196943]
[1739603742324,5.1143,195.5,195.49,9.03196943]
[1739603746325,0.03502376,195.51,195.47,9.06676484]
[1739603747523,5.1147,195.49,195.47,9.06676484]
[1739603748625,0.03502376,195.51,195.47,9.06676484]
[1739603748825,5.1148,195.48,195.47,9.06676484]
[1739603749127,0.03502376,195.51,195.47,9.06676484]
[1739603749628,5.1145,195.49,195.47,9.06676484]
[1739603753031,5.1148,195.48,195.47,9.06676484]
[1739603754025,5.1143,195.5,195.47,9.06676484]
[1739603754425,0.03502376,195.51,195.49,9.03196943]
[1739603754630,5.14902376,195.51,195.49,9.03196943]
[1739603756937,5.1143,195.5,195.49,9.03196943]
[1739603759535,0.03502376,195.51,195.47,9.06676484]
[1739603759736,5.1146,195.49,195.47,9.06676484]
[1739603764840,5.1143,195.5,195.47,9.06676484]
[1739603766040,5.1143,195.5,195.49,9.03196943]
[1739603767844,0.03502376,195.51,195.49,9.03196943]
[1739603768045,19.31402587,195.61,195.49,14.14636943]
[1739603768234,19.31402587,195.61,195.54,9.03196943]
[1739603768441,9.03196943,195.61,195.54,9.03196943]
[1739603768938,5.113,195.55,195.54,9.03196943]
[1739603772149,5.113,195.55,195.53,0.03416222]
[1739603774042,0.0365166,195.59,195.54,9.03196943]
[1739603774244,5.1124,195.57,195.56,9.03196943]
[1739603775149,5.1487166,195.59,195.56,9.03196943]
[1739603775344,0.0365166,195.59,195.56,9.03196943]
[1739603778147,5.1124,195.57,195.56,9.03196943]
[1739603780951,5.1486166,195.59,195.56,9.03196943]
[1739603781948,0.0365166,195.59,195.56,9.03196943]
[1739603782348,0.0365166,195.59,195.58,9.03196943]
[1739603784352,5.1484166,195.59,195.58,9.03196943]
[1739603784653,0.0365166,195.59,195.58,9.03196943]
[1739603788250,0.0365166,195.59,195.53,9.06613165]
[1739603788454,9.06848603,195.59,195.53,9.06613165]
[1739603788755,5.113,195.55,195.53,0.03416222]
[1739603789356,14.14496943,195.55,195.53,0.03416222]
[1739603789957,5.113,195.55,195.53,0.03416222]
[1739603792957,5.113,195.55,195.53,9.06613165]
[1739603797055,5.113,195.55,195.53,0.03416222]
[1739603798970,9.03196943,195.57,195.53,0.03416222]
[1739603799170,5.1132,195.54,195.53,0.03416222]
[1739603804870,5.1132,195.54,195.53,6.222e-05]
[1739603805972,5.1156,195.45,195.44,3.0]
[1739603806868,9.03196943,195.5,195.44,3.0]
[1739603807074,9.03196943,195.48,195.45,0.03435387]
[1739603807274,9.03196943,195.48,195.44,3.0]
[1739603807569,9.06455992,195.48,195.45,0.03861533]
[1739603807770,0.03259049,195.48,195.45,0.03861533]
[1739603808171,5.1153,195.46,195.45,0.03861533]
[1739603809277,5.14759049,195.48,195.45,0.03861533]
[1739603809477,0.03259049,195.48,195.45,0.03861533]
[1739603809676,0.03259049,195.48,195.45,9.07058476]
[1739603809874,5.14749049,195.48,195.45,9.07058476]
[1739603811374,0.03259049,195.48,195.45,9.07058476]
[1739603811575,5.1151,195.47,195.45,9.07058476]
[1739603812179,0.03259049,195.48,195.45,9.07058476]
[1739603812481,5.1153,195.46,195.45,0.03861533]
[1739603813482,0.03259049,195.48,195.45,9.07058476]
[1739603813682,0.03259049,195.48,195.47,9.03196943]
[1739603814979,0.03259049,195.48,195.45,0.03861533]
[1739603814980,0.03259049,195.48,195.45,9.07058476]
[1739603816277,5.14749049,195.48,195.45,9.07058476]
[1739603816477,0.03259049,195.48,195.45,9.07058476]
[1739603816677,0.03259049,195.48,195.47,9.03196943]
[1739603821791,5.1136,195.53,195.47,14.14706943]
[1739603821987,9.03196943,195.56,195.5,9.03196943]
[1739603822991,0.03490941,195.55,195.51,0.03674175]
[1739603823587,5.1138,195.52,195.51,0.03674175]
[1739603825692,5.1135,195.53,195.51,0.03674175]
[1739603825994,0.03490941,195.55,195.51,0.03674175]
[1739603827595,5.1136,195.53,195.51,0.03674175]
[1739603827792,0.03490941,195.55,195.52,9.03196943]
[1739603829191,0.03490941,195.55,195.51,0.03674175]
[1739603830194,5.1138,195.52,195.51,0.03674175]
[1739603830910,5.1132,195.54,195.51,0.03674175]
[1739603831095,5.1132,195.54,195.52,9.03196943]
[1739603831497,0.03490941,195.55,195.52,9.03196943]
[1739603831696,5.1135,195.53,195.52,9.03196943]
[1739603833401,5.1138,195.52,195.51,0.03674175]
[1739603840509,5.1134,195.54,195.51,0.03674175]
[1739603840699,0.03490941,195.55,195.51,0.03674175]
[1739603841405,5.1136,195.53,195.51,0.03674175]
[1739603842601,5.14800941,195.55,195.51,0.03674175]
[1739603842809,5.14800941,195.55,195.54,9.03196943]
[1739603842810,0.03490941,195.55,195.54,9.03196943]
[1739603842999,10.53476943,195.64,195.54,9.03196943]
[1739603843204,10.53476943,195.64,195.57,9.03196943]
[1739603843409,5.1114,195.61,195.57,9.03196943]
[1739603843604,9.03196943,195.64,195.57,9.03196943]
[1739603844005,9.03196943,195.62,195.55,9.03196943]
[1739603844199,9.03196943,195.62,195.52,4.661]
[1739603844200,9.03196943,195.58,195.52,4.661]
[1739603844406,5.1135,195.53,195.51,9.03196943]
[1739603844602,9.03196943,195.54,195.47,9.03196943]
[1739603844801,15.35,195.63,195.45,3.1037]
[1739603845002,9.03196943,195.51,195.45,3.1037]
[1739603845607,9.03196943,195.51,195.45,1.5743]
[1739603845910,0.03530371,195.5,195.46,0.03479675]
[1739603846901,5.115,195.48,195.46,0.03479675]
[1739603847102,0.03530371,195.5,195.46,0.03479675]
[1739603847505,0.03530371,195.5,195.46,9.06676618]
[1739603850003,5.14960371,195.5,195.46,9.06676618]
[1739603852913,0.03530371,195.5,195.48,9.03196943]
[1739603856712,0.03530371,195.5,195.46,9.06676618]
[1739603857209,5.1148,195.48,195.46,9.06676618]
[1739603862309,5.1146,195.49,195.46,9.06676618]
[1739603863414,5.1149,195.48,195.46,9.06676618]
[1739603868114,5.1145,195.49,195.46,9.06676618]
[1739603869916,0.03530371,195.5,195.46,9.06676618]
[1739603872214,0.03530371,195.5,195.46,0.03479675]
[1739603873218,5.1151,195.47,195.46,0.03479675]
[1739603880623,0.03530371,195.5,195.46,0.03479675]
[1739603881124,0.03530371,195.5,195.46,9.06676618]
[1739603881322,5.14980371,195.5,195.46,9.06676618]
[1739603881621,0.03530371,195.5,195.46,9.06676618]
[1739603882123,5.14980371,195.5,195.46,9.06676618]
[1739603882324,0.03530371,195.5,195.46,9.06676618]
[1739603882725,5.14960371,195.5,195.46,9.06676618]
[1739603883823,0.03530371,195.5,195.46,9.06676618]
[1739603884025,5.1147,195.49,195.46,9.06676618]
[1739603884326,0.03530371,195.5,195.46,9.06676618]
[1739603884520,5.1148,195.48,195.46,9.06676618]
[1739603884720,5.1148,195.48,195.46,0.03479675]
[1739603885326,5.1151,195.47,195.46,0.03479675]
[1739603885624,5.1151,195.47,195.46,9.06676618]
[1739603887022,5.1147,195.49,195.46,9.06676618]
[1739603887927,5.1149,195.48,195.46,9.06676618]
[1739603889027,0.03530371,195.5,195.46,9.06676618]
[1739603889028,5.1151,195.47,195.46,9.06676618]
[1739603889525,5.1151,195.47,195.46,0.03479675]
[1739603893426,14.14706943,195.47,195.46,0.03479675]
[1739603905643,14.14706943,195.47,195.46,9.675e-05]
[1739603905838,5.1172,195.39,195.38,0.19279]
[1739603908335,0.0375165,195.4,195.38,9.22475943]
[1739603909044,5.1544165,195.4,195.38,9.22475943]
[1739603909341,0.0375165,195.4,195.38,9.03196943]
[1739603912347,5.1544165,195.4,195.38,9.03196943]
[1739603912648,5.1544165,195.4,195.37,0.03225708]
[1739603914156,0.0375165,195.4,195.37,0.03225708]
[1739603914353,5.1172,195.39,195.37,0.03225708]
[1739603914752,0.0375165,195.4,195.37,0.03225708]
[1739603915554,5.1544165,195.4,195.37,0.03225708]
[1739603915751,0.0375165,195.4,195.37,0.03225708]
[1739603915960,9.06948593,195.4,195.37,0.03225708]
[1739603916159,14.14936943,195.38,195.37,0.03225708]
[1739603916660,0.0375165,195.4,195.37,0.03225708]
[1739603916861,0.0375165,195.4,195.38,9.03196943]
[1739603918260,9.03196943,195.48,195.38,10.60316943]
[1739603918462,9.03196943,195.48,195.42,9.03196943]
[1739603918859,9.03196943,195.48,195.4,9.03196943]
[1739603919357,5.1163,195.43,195.42,0.03243146]
[1739603919558,5.1163,195.43,195.4,9.03196943]
[1739603919759,5.1163,195.43,195.41,0.03560369]
[1739603920656,9.03196943,195.42,195.41,0.03560369]
[1739603921265,9.03196943,195.42,195.41,3.69e-06]
[1739603923971,9.03196943,195.42,195.31,1.6095]
[1739603924169,9.03196943,195.37,195.3,9.24181943]
[1739603924468,9.03196943,195.37,195.32,9.03196943]
[1739603924968,0.03451999,195.36,195.33,0.03403847]
[1739603925170,5.1183,195.35,195.33,0.03403847]
[1739603927165,0.03451999,195.36,195.33,0.03403847]
[1739603927463,5.1185,195.34,195.33,0.03403847]
[1739603930470,0.03451999,195.36,195.33,0.03403847]
[1739603930667,0.03451999,195.36,195.34,9.03196943]
[1739603930974,9.03196943,195.45,195.34,9.03196943]
[1739603931171,5.1166,195.42,195.39,9.03196943]
[1739603931369,9.03196943,195.45,195.39,9.03196943]
[1739603931764,5.1166,195.41,195.39,9.03196943]
[1739603931969,5.1166,195.41,195.4,0.03815342]
[1739603933172,14.14856943,195.41,195.4,0.03815342]
[1739603933468,9.03196943,195.41,195.31,9.03196943]
[1739603933669,9.03196943,195.38,195.31,9.03196943]
[1739603934166,5.1185,195.34,195.31,9.03196943]
[1739603934567,5.15451494,195.34,195.31,9.06626515]
[1739603934771,0.03601494,195.34,195.33,9.03196943]
[1739603938476,0.03601494,195.34,195.31,9.06626515]
[1739603938677,5.1187,195.33,195.31,9.06626515]
[1739603939176,5.15451494,195.34,195.31,9.06626515]
[1739603941375,0.03601494,195.34,195.33,9.03196943]
[1739603942580,5.15451494,195.34,195.33,9.03196943]
[1739603943381,0.03601494,195.34,195.33,9.03196943]
[1739603945681,5.15451494,195.34,195.31,9.06626515]
[1739603945981,0.03601494,195.34,195.31,9.06626515]
[1739603946682,5.1188,195.33,195.31,9.06626515]
[1739603948675,5.119,195.32,195.31,9.06626515]
[1739603949481,5.119,195.32,195.31,0.03429572]
[1739603966389,14.15096943,195.32,195.31,0.03429572]
[1739603966592,5.119,195.32,195.31,0.03429572]
[1739603983010,9.06798437,195.34,195.31,0.03429572]
[1739603983209,5.1187,195.33,195.31,0.03429572]
[1739603985716,0.03601494,195.34,195.31,0.03429572]
[1739603986118,0.03601494,195.34,195.31,9.06626515]
[1739603987311,5.15451494,195.34,195.31,9.06626515]
[1739603987918,0.03601494,195.34,195.31,9.06626515]
[1739603989113,5.15471494,195.34,195.31,9.06626515]
[1739603989316,0.03601494,195.34,195.31,9.06626515]
[1739603990922,0.03601494,195.34,195.33,9.03196943]
[1739603995023,5.1177,195.38,195.33,9.03196943]
[1739603995625,9.03196943,195.4,195.33,9.03196943]
[1739603995824,5.1177,195.37,195.33,9.03196943]
[1739603996225,5.15621712,195.37,195.33,9.03196943]
[1739603996524,5.15621712,195.37,195.35,9.03196943]
[1739603996525,0.03851712,195.37,195.35,9.03196943]
[1739603998026,5.15631712,195.37,195.35,9.03196943]
[1739603998227,5.15631712,195.37,195.33,10.53116943]
[1739603999422,0.03851712,195.37,195.33,10.53116943]
[1739603999625,0.03851712,195.37,195.35,9.03196943]
[1739604000626,191.0,195.45,195.4,9.03196943]
[1739604000926,9.03196943,195.46,195.4,9.03196943]